bitfinex-derivatives/quotes_BTCF0:USTF0_20250902
["timestamp","ask_amount","ask_price","bid_price","bid_amount"]
[1756802891773,0.44432576,110610.0,110600.0,0.08738]
[1756802894276,0.09432576,110610.0,110600.0,0.08738]
[1756802894574,0.41432576,110610.0,110600.0,0.08738]
[1756802895085,0.41432576,110610.0,110600.0,0.08438]
[1756802895476,0.41432576,110610.0,110600.0,0.08138]
[1756802895778,0.41432576,110610.0,110600.0,0.08238]
[1756802896880,0.41432576,110610.0,110600.0,0.37363646]
[1756802897872,0.70558222,110610.0,110600.0,0.001]
[1756802898679,0.95558222,110610.0,110600.0,0.001]
[1756802898880,0.95558222,110610.0,110590.0,0.00452]
[1756802899076,1.21002646,110600.0,110590.0,0.05099]
[1756802899283,1.27877,110600.0,110590.0,0.05099]
[1756802900180,1.27877,110600.0,110590.0,0.05299]
[1756802900372,1.27877,110600.0,110590.0,0.05499]
[1756802900771,1.57002646,110600.0,110590.0,0.05499]
[1756802900981,1.57002646,110600.0,110590.0,0.05299]
[1756802901281,1.589939,110600.0,110590.0,0.00652]
[1756802902177,1.589939,110600.0,110590.0,0.002]
[1756802902374,0.03738,110590.0,110580.0,0.03491]
[1756802902569,1.22877,110590.0,110580.0,0.08138]
[1756802903783,0.39541,110590.0,110580.0,0.08138]
[1756802903983,1.22877,110590.0,110580.0,0.08138]
[1756802904182,0.91877,110590.0,110580.0,0.08138]
[1756802904383,0.91877,110590.0,110580.0,0.37263646]
[1756802904786,0.91877,110590.0,110580.0,0.08138]
[1756802904984,0.91877,110590.0,110580.0,0.37263646]
[1756802905185,0.91877,110590.0,110580.0,0.08138]
[1756802905483,0.91877,110590.0,110580.0,0.37463646]
[1756802906288,0.91877,110590.0,110580.0,0.37363646]
[1756802907387,0.08541,110590.0,110580.0,0.37363646]
[1756802907984,0.42541,110590.0,110580.0,0.37363646]
[1756802908187,0.91873,110590.0,110580.0,0.37363646]
[1756802908386,1.24873,110590.0,110580.0,0.37363646]
[1756802909378,0.91873,110590.0,110580.0,0.37363646]
[1756802909579,1.21038467,110590.0,110580.0,0.37403467]
[1756802909780,0.70706467,110590.0,110580.0,0.37403467]
[1756802909981,1.21038467,110590.0,110580.0,0.37403467]
[1756802910181,0.37706467,110590.0,110580.0,0.37403467]
[1756802910487,1.57038467,110590.0,110580.0,0.37403467]
[1756802911985,0.73706467,110590.0,110580.0,0.37403467]
[1756802912185,1.21038467,110590.0,110580.0,0.37403467]
[1756802912485,0.08541,110590.0,110580.0,0.37403467]
[1756802912683,1.21038467,110590.0,110580.0,0.37403467]
[1756802912887,1.59038467,110590.0,110580.0,0.37403467]
[1756802914383,1.59038467,110590.0,110580.0,0.4225744]
[1756802914991,0.91869,110590.0,110580.0,0.4225744]
[1756802915188,1.21034467,110590.0,110580.0,0.71422907]
[1756802915389,0.37706467,110590.0,110580.0,0.71422907]
[1756802915589,1.21034467,110590.0,110580.0,0.71422907]
[1756802915986,1.21034467,110590.0,110580.0,0.13091973]
[1756802916286,0.37706467,110590.0,110580.0,0.71422907]
[1756802916588,1.21034467,110590.0,110580.0,0.71422907]
[1756802916980,1.54034467,110590.0,110580.0,0.71422907]
[1756802918891,1.54034467,110590.0,110580.0,0.3876644]
[1756802919288,1.54034467,110590.0,110580.0,0.4226444]
[1756802919688,1.54034467,110590.0,110580.0,0.3876644]
[1756802919894,1.54034467,110590.0,110580.0,0.07265973]
[1756802920194,1.24869,110590.0,110580.0,0.3903944]
[1756802920394,1.54034467,110590.0,110580.0,0.3903944]
[1756802920594,1.54034467,110590.0,110580.0,0.09873973]
[1756802920787,1.54034467,110590.0,110580.0,0.3903944]
[1756802921695,1.54034467,110590.0,110580.0,0.09873973]
[1756802921896,1.54034467,110590.0,110580.0,0.3903944]
[1756802922095,0.70706467,110590.0,110580.0,0.4253744]
[1756802922300,1.54026467,110590.0,110580.0,0.4253744]
[1756802922593,1.54026467,110590.0,110580.0,0.07432973]
[1756802922800,1.54026467,110590.0,110580.0,0.3411944]
[1756802922992,1.54026467,110590.0,110580.0,0.04953973]
[1756802923193,1.54026467,110590.0,110580.0,0.3411944]
[1756802923394,1.54026467,110590.0,110580.0,0.04953973]
[1756802923595,1.54026467,110590.0,110580.0,0.3659844]
[1756802923796,1.54026467,110590.0,110580.0,0.04953973]
[1756802926602,1.54026467,110590.0,110580.0,0.07432973]
[1756802926800,1.24861,110590.0,110580.0,0.09873973]
[1756802926996,1.24853,110590.0,110580.0,0.3903944]
[1756802927196,1.54018467,110590.0,110580.0,0.09873973]
[1756802927398,1.54018467,110590.0,110580.0,0.3903944]
[1756802928799,1.54018467,110590.0,110580.0,0.4253744]
[1756802929001,1.24853,110590.0,110580.0,0.4253744]
[1756802929202,1.54018467,110590.0,110580.0,0.4253744]
[1756802929399,1.54018467,110590.0,110580.0,0.37683467]
[1756802930419,1.55980737,110590.0,110580.0,0.13388949]
[1756802930702,1.55980737,110590.0,110580.0,0.42554416]
[1756802931606,1.55980737,110590.0,110580.0,0.39056416]
[1756802932205,1.55980737,110590.0,110580.0,0.09890949]
[1756802934303,1.54018467,110590.0,110580.0,0.13388949]
[1756802934508,1.55980953,110590.0,110580.0,0.09890949]
[1756802934701,1.55980953,110590.0,110580.0,0.39056416]
[1756802935008,1.55980953,110590.0,110580.0,0.36615416]
[1756802935509,1.55980953,110590.0,110580.0,0.07449949]
[1756802935809,1.54018467,110590.0,110580.0,0.09050964]
[1756802937110,1.5598094,110590.0,110580.0,0.07448453]
[1756802937810,1.5598094,110590.0,110580.0,0.04969453]
[1756802938915,1.26815473,110590.0,110580.0,0.04969453]
[1756802939107,1.5598094,110590.0,110580.0,0.04969453]
[1756802941414,1.26815473,110590.0,110580.0,0.09889453]
[1756802941618,1.5598094,110590.0,110580.0,0.10341453]
[1756802941815,1.5598094,110590.0,110580.0,0.07900453]
[1756802942415,1.5598094,110590.0,110580.0,0.05421453]
[1756802946715,1.26815473,110590.0,110580.0,0.05421453]
[1756802947015,1.5598094,110590.0,110580.0,0.05421453]
[1756802947205,1.54018467,110590.0,110580.0,0.07023964]
[1756802950910,1.54018467,110590.0,110580.0,0.09441964]
[1756802953013,1.54018467,110590.0,110580.0,0.07023964]
[1756802953915,1.83183934,110590.0,110580.0,0.07023964]
[1756802954317,1.83183934,110590.0,110580.0,0.00552]
[1756802955317,1.85146898,110590.0,110580.0,0.05421349]
[1756802955916,1.85146898,110590.0,110580.0,0.05321349]
[1756802956513,0.43503964,110590.0,110580.0,0.10234349]
[1756802956717,1.55929431,110590.0,110580.0,0.10234349]
[1756802956917,1.55929431,110590.0,110580.0,0.07739349]
[1756802957118,1.55929431,110590.0,110580.0,0.05321349]
[1756802958220,0.72669431,110590.0,110580.0,0.07739349]
[1756802958422,1.55925431,110590.0,110580.0,0.07739349]
[1756802958821,1.55925431,110590.0,110580.0,0.05321349]
[1756802959624,1.55925431,110590.0,110580.0,0.04869349]
[1756802959824,1.55925431,110590.0,110580.0,0.07287349]
[1756802960823,0.43503964,110590.0,110580.0,0.42651816]
[1756802961022,1.53958467,110590.0,110580.0,0.43103816]
[1756802961322,0.70706467,110590.0,110580.0,0.69706431]
[1756802961524,1.53958467,110590.0,110580.0,0.69706431]
[1756802962119,1.53958467,110590.0,110580.0,0.68099761]
[1756802962624,1.53958467,110590.0,110580.0,0.68199761]
[1756802963322,1.53958467,110590.0,110580.0,0.63334467]
[1756802964323,0.70706467,110590.0,110580.0,0.63334467]
[1756802964522,1.53954467,110590.0,110580.0,0.63334467]
[1756802965932,1.53954467,110590.0,110580.0,0.69806431]
[1756802966534,0.41541,110590.0,110580.0,0.92499934]
[1756802966735,0.37803,110590.0,110580.0,0.92499934]
[1756802966926,0.37803,110590.0,110580.0,0.98971898]
[1756802967126,0.41222,110590.0,110580.0,0.98971898]
[1756802968328,0.41222,110590.0,110580.0,0.92499934]
[1756802969634,0.41222,110590.0,110580.0,0.63330515]
[1756802973437,0.33,110590.0,110580.0,0.94355195]
[1756802973632,0.33,110590.0,110580.0,1.00827159]
[1756802974033,0.01991254,110600.0,110580.0,0.97123159]
[1756802974234,0.42121254,110600.0,110590.0,0.37778515]
[1756802975338,0.04202465,110640.0,110600.0,0.01442]
[1756802975542,0.42895278,110640.0,110630.0,0.37778515]
[1756802975737,0.07476278,110640.0,110630.0,0.89546515]
[1756802975935,0.00783465,110640.0,110630.0,1.45990515]
[1756802976240,0.00783465,110640.0,110630.0,0.62778515]
[1756802976443,0.00783465,110640.0,110630.0,1.46900367]
[1756802976841,0.03072465,110640.0,110630.0,0.33617]
[1756802977039,0.00783465,110640.0,110630.0,1.45982515]
[1756802977542,0.00783465,110640.0,110630.0,1.50818016]
[1756802978441,0.00883465,110640.0,110630.0,1.52628412]
[1756802979335,0.00883465,110640.0,110630.0,1.52620412]
[1756802980841,0.00883465,110640.0,110630.0,1.52612412]
[1756802981035,0.04511108,110650.0,110640.0,0.03598]
[1756802981036,0.00785108,110650.0,110640.0,0.03598]
[1756802981243,0.0923459,110670.0,110660.0,0.08367]
[1756802981434,0.0923459,110670.0,110660.0,0.95964515]
[1756802981633,0.0923459,110670.0,110660.0,0.37528515]
[1756802981837,0.4723459,110670.0,110660.0,1.20712515]
[1756802982038,0.0923459,110670.0,110660.0,1.20712515]
[1756802983145,0.0923459,110670.0,110660.0,1.21163515]
[1756802983546,0.0923459,110670.0,110660.0,1.21151515]
[1756802984646,0.0923459,110670.0,110660.0,0.37979515]
[1756802984947,0.0923459,110670.0,110660.0,1.01655515]
[1756802986347,0.0923459,110670.0,110660.0,0.37979515]
[1756802986547,0.0923459,110670.0,110660.0,1.21139515]
[1756802987148,0.0923459,110670.0,110660.0,0.08818]
[1756802989751,0.69396105,110670.0,110660.0,0.08818]
[1756802990349,0.71285754,110670.0,110660.0,0.08818]
[1756802990542,0.42124239,110670.0,110660.0,0.08818]
[1756802990742,0.4023459,110670.0,110660.0,0.08818]
[1756802992750,0.4023459,110670.0,110660.0,0.37979515]
[1756802993858,0.4023459,110670.0,110660.0,0.08818]
[1756802994259,0.42125288,110670.0,110660.0,0.08818]
[1756802996846,0.42125288,110670.0,110660.0,0.37979515]
[1756802997244,0.4023459,110670.0,110660.0,0.37979515]
[1756802998753,0.4023459,110670.0,110660.0,0.0522]
[1756802998951,0.94396105,110670.0,110660.0,0.00451]
[1756802999143,0.94396105,110670.0,110660.0,0.0286]
[1756802999351,0.69396105,110670.0,110660.0,0.0522]
[1756803000350,0.69396105,110670.0,110660.0,0.0286]
[1756803000747,0.69396105,110670.0,110660.0,0.0522]
[1756803001254,0.4023459,110670.0,110660.0,0.08818]
[1756803001456,0.69396105,110670.0,110660.0,0.08818]
[1756803001958,0.4023459,110670.0,110660.0,0.08818]
[1756803002345,0.69396105,110670.0,110660.0,0.08818]
[1756803002558,0.69396105,110670.0,110660.0,0.0522]
[1756803003458,0.73287764,110670.0,110660.0,0.0286]
[1756803003850,0.73287764,110670.0,110660.0,0.0522]
[1756803004157,0.71387921,110670.0,110660.0,0.0286]
[1756803004354,0.73289673,110670.0,110660.0,0.0286]
[1756803005059,0.44128158,110670.0,110660.0,0.0522]
[1756803005359,0.73289673,110670.0,110660.0,0.08818]
[1756803005859,0.44128158,110670.0,110660.0,0.08818]
[1756803006058,0.73289673,110670.0,110660.0,0.08818]
[1756803006359,0.44128158,110670.0,110660.0,0.37979515]
[1756803009658,0.44128158,110670.0,110660.0,0.08818]
[1756803009960,0.44128158,110670.0,110660.0,0.37979515]
[1756803010457,0.42226406,110670.0,110660.0,0.41211951]
[1756803012655,0.71387921,110670.0,110660.0,0.08452436]
[1756803012853,0.71387921,110670.0,110660.0,0.03683436]
[1756803013054,1.25549436,110670.0,110660.0,0.03683436]
[1756803013252,1.79471921,110670.0,110660.0,0.00451]
[1756803013562,1.79471921,110670.0,110660.0,0.06131436]
[1756803013861,1.79471921,110670.0,110660.0,0.08573436]
[1756803021161,1.79471921,110670.0,110660.0,0.12049436]
[1756803021968,1.79471921,110670.0,110660.0,0.08573436]
[1756803022873,1.79471921,110670.0,110660.0,0.12049436]
[1756803024658,1.79471921,110670.0,110660.0,0.08573436]
[1756803025972,1.79471921,110670.0,110660.0,0.06131436]
[1756803026176,1.79471921,110670.0,110660.0,0.03683436]
[1756803026374,1.54471921,110670.0,110660.0,0.03683436]
[1756803026571,1.54471921,110670.0,110660.0,0.00451]
[1756803026885,1.83633436,110670.0,110660.0,0.00451]
[1756803027071,1.54471921,110670.0,110660.0,0.00451]
[1756803027377,1.59354983,110670.0,110660.0,0.00451]
[1756803031476,1.59324804,110670.0,110660.0,0.00451]
[1756803032273,1.83573078,110670.0,110660.0,0.00451]
[1756803034275,1.54441742,110670.0,110660.0,0.00451]
[1756803036889,1.59324804,110670.0,110660.0,0.00451]
[1756803037282,1.54441742,110670.0,110660.0,0.00451]
[1756803038583,1.54441742,110670.0,110660.0,0.0852]
[1756803038779,1.54441742,110670.0,110660.0,0.05129]
[1756803039184,1.54441742,110670.0,110660.0,0.00451]
[1756803040885,0.71357742,110670.0,110660.0,0.05129]
[1756803041085,1.25258406,110670.0,110660.0,0.91782672]
[1756803041281,0.42226406,110670.0,110660.0,0.99850609]
[1756803041483,0.42226406,110670.0,110660.0,0.96618173]
[1756803043789,0.71357742,110670.0,110660.0,0.38355501]
[1756803043983,0.71357742,110670.0,110660.0,0.67486837]
[1756803044182,0.73263932,110670.0,110660.0,0.62651336]
[1756803045382,0.73263932,110670.0,110660.0,0.67486837]
[1756803046190,0.71357742,110670.0,110660.0,0.67486837]
[1756803047277,0.73263784,110670.0,110660.0,0.62651336]
[1756803047480,0.73263784,110670.0,110660.0,0.3352]
[1756803047684,0.73263784,110670.0,110660.0,0.62651336]
[1756803047985,0.73263784,110670.0,110660.0,0.37651336]
[1756803049788,0.71357742,110670.0,110660.0,0.37651336]
[1756803049996,0.73263718,110670.0,110660.0,0.37651336]
[1756803050488,0.73263718,110670.0,110660.0,0.0852]
[1756803050699,0.73263718,110670.0,110660.0,0.00451]
[1756803050996,1.27395054,110670.0,110660.0,0.00451]
[1756803055497,1.27395054,110670.0,110660.0,0.05129]
[1756803055685,1.27395054,110670.0,110660.0,0.00451]
[1756803056393,0.98263718,110670.0,110660.0,0.00451]
[1756803057597,0.98263718,110670.0,110660.0,0.02812]
[1756803057797,0.98263718,110670.0,110660.0,0.00451]
[1756803059301,0.73263718,110670.0,110660.0,0.00451]
[1756803061294,0.44132382,110670.0,110660.0,0.37651336]
[1756803061500,1.56255718,110670.0,110660.0,0.37651336]
[1756803061689,1.27124382,110670.0,110660.0,0.37651336]
[1756803061898,1.56255718,110670.0,110660.0,0.37651336]
[1756803063402,0.73263718,110670.0,110660.0,0.37651336]
[1756803063596,1.27120382,110670.0,110660.0,0.37651336]
[1756803063796,1.56251718,110670.0,110660.0,0.37651336]
[1756803064303,0.73263718,110670.0,110660.0,0.37651336]
[1756803064499,1.56251718,110670.0,110660.0,0.37651336]
[1756803065003,1.56251718,110670.0,110660.0,0.0852]
[1756803065302,1.56251718,110670.0,110660.0,0.37651336]
[1756803067104,1.27120382,110670.0,110660.0,0.37651336]
[1756803067399,1.56251718,110670.0,110660.0,0.00451]
[1756803068303,1.56251718,110670.0,110660.0,0.02802]
[1756803068504,1.56251718,110670.0,110660.0,0.0517]
[1756803069708,1.56251718,110670.0,110660.0,0.00451]
[1756803070005,1.56251718,110670.0,110660.0,0.0517]
[1756803070598,1.27112382,110670.0,110660.0,0.0517]
[1756803070999,1.56239718,110670.0,110660.0,0.38002336]
[1756803071697,1.56239718,110670.0,110660.0,0.08871]
[1756803072398,1.56239718,110670.0,110660.0,0.38002336]
[1756803073112,1.56235718,110670.0,110660.0,0.38002336]
[1756803073298,0.44132382,110670.0,110660.0,0.38002336]
[1756803073493,1.56203718,110670.0,110660.0,0.38002336]
[1756803074904,0.73263718,110670.0,110660.0,0.38002336]
[1756803075110,0.44132382,110670.0,110660.0,0.96969173]
[1756803075604,0.44132382,110670.0,110660.0,0.67837837]
[1756803075910,0.73263718,110670.0,110660.0,0.63002336]
[1756803076208,0.73263718,110670.0,110660.0,0.67837837]
[1756803076808,0.73263718,110670.0,110660.0,0.38706501]
[1756803077011,0.73263718,110670.0,110660.0,0.67837837]
[1756803077305,0.73263718,110670.0,110660.0,0.63002336]
[1756803083316,0.44132382,110670.0,110660.0,0.63002336]
[1756803083522,0.73263718,110670.0,110660.0,0.63002336]
[1756803088022,0.44132382,110670.0,110660.0,0.63002336]
[1756803088329,0.73263718,110670.0,110660.0,0.63002336]
[1756803088628,0.44132382,110670.0,110660.0,0.63002336]
[1756803088931,0.73263718,110670.0,110660.0,0.63002336]
[1756803089231,0.73263718,110670.0,110660.0,0.67837837]
[1756803090234,0.73263718,110670.0,110660.0,0.38706501]
[1756803090535,0.73263718,110670.0,110660.0,0.67837837]
[1756803091539,0.44132382,110670.0,110660.0,0.38706501]
[1756803091734,0.73256651,110670.0,110660.0,0.38706501]
[1756803092139,0.44132382,110670.0,110660.0,0.38706501]
[1756803092434,0.73256651,110670.0,110660.0,0.38706501]
[1756803094426,1.0238092,110670.0,110660.0,0.00451]
[1756803094632,0.73256651,110670.0,110660.0,0.00451]
[1756803094838,0.73256651,110670.0,110660.0,0.02802]
[1756803095036,0.73256651,110670.0,110660.0,0.0517]
[1756803096437,0.73256651,110670.0,110660.0,0.00451]
[1756803096833,0.73256651,110670.0,110660.0,0.02732]
[1756803097338,0.73256651,110670.0,110660.0,0.00451]
[1756803098926,0.73256651,110670.0,110660.0,0.02732]
[1756803099130,0.73256651,110670.0,110660.0,0.05218]
[1756803100934,0.73256651,110670.0,110660.0,0.00451]
[1756803101626,0.73256651,110670.0,110660.0,0.02732]
[1756803102039,0.73256651,110670.0,110660.0,0.05218]
[1756803102439,0.73256651,110670.0,110660.0,0.00451]
[1756803103040,0.73256651,110670.0,110660.0,0.02732]
[1756803103239,0.73256651,110670.0,110660.0,0.00451]
[1756803105035,0.78256651,110670.0,110660.0,0.00451]
[1756803106443,1.61172651,110670.0,110660.0,0.05218]
[1756803107338,0.78256651,110670.0,110660.0,0.05218]
[1756803107536,1.61168651,110670.0,110660.0,0.05218]
[1756803109443,0.08263,110650.0,110640.0,0.09602501]
[1756803109638,1.55299269,110650.0,110640.0,0.13279501]
[1756803110640,1.55299269,110650.0,110640.0,0.13479501]
[1756803110836,1.26175,110650.0,110640.0,0.13679501]
[1756803111042,1.26171,110650.0,110640.0,0.13679501]
[1756803111240,1.26171,110650.0,110640.0,0.10002501]
[1756803111439,1.26171,110650.0,110640.0,0.13679501]
[1756803112148,1.55295269,110650.0,110640.0,0.13679501]
[1756803112346,1.26171,110650.0,110640.0,0.13679501]
[1756803113346,1.26171,110650.0,110640.0,0.10002501]
[1756803113347,1.55295269,110650.0,110640.0,0.10002501]
[1756803113547,1.57202962,110650.0,110640.0,0.05235501]
[1756803113739,1.57202974,110650.0,110640.0,0.05235501]
[1756803113939,1.57202974,110650.0,110640.0,0.07516501]
[1756803114139,1.55291269,110650.0,110640.0,0.05167]
[1756803114343,1.55291269,110650.0,110640.0,0.08844]
[1756803114847,1.28074492,110650.0,110640.0,0.08644]
[1756803115342,1.28074492,110650.0,110640.0,0.08444]
[1756803115541,1.26167,110650.0,110640.0,0.08444]
[1756803116844,1.26167,110650.0,110640.0,0.37568269]
[1756803117246,0.4517004,110650.0,110640.0,0.37568269]
[1756803118247,0.4517004,110650.0,110640.0,0.08444]
[1756803120842,0.1456204,110650.0,110640.0,0.91692538]
[1756803121046,0.12655,110650.0,110640.0,0.91692538]
[1756803121442,0.02288,110650.0,110640.0,0.91692538]
[1756803121643,0.04195127,110650.0,110640.0,0.91792538]
[1756803121840,0.02288,110650.0,110640.0,0.6750377]
[1756803122144,0.05639203,110660.0,110640.0,0.6382677]
[1756803122343,0.45201421,110660.0,110650.0,0.37568269]
[1756803123140,0.45201421,110660.0,110650.0,0.08444]
[1756803125249,0.45201421,110660.0,110650.0,0.08544]
[1756803125650,0.45201421,110660.0,110650.0,0.37668269]
[1756803126749,0.7432569,110660.0,110650.0,0.04867]
[1756803127146,0.7432569,110660.0,110650.0,0.09702501]
[1756803127549,0.7432569,110660.0,110650.0,0.13212501]
[1756803127750,0.7432569,110660.0,110650.0,0.09702501]
[1756803127950,0.45201421,110660.0,110650.0,0.09702501]
[1756803128150,0.7432569,110660.0,110650.0,0.09702501]
[1756803128850,0.7432569,110660.0,110650.0,0.04935501]
[1756803129353,0.7432569,110660.0,110650.0,0.07217501]
[1756803129748,0.74326991,110660.0,110650.0,0.09521501]
[1756803130252,0.74326991,110660.0,110650.0,0.13031501]
[1756803130749,0.74326991,110660.0,110650.0,0.09521501]
[1756803131551,0.74326991,110660.0,110650.0,0.04935501]
[1756803132655,0.74326991,110660.0,110650.0,0.09521501]
[1756803132851,0.45202722,110660.0,110650.0,0.09521501]
[1756803133056,0.74326991,110660.0,110650.0,0.09521501]
[1756803134858,0.72418472,110660.0,110650.0,0.09521501]
[1756803135156,0.74327247,110660.0,110650.0,0.09521501]
[1756803135949,0.45202978,110660.0,110650.0,0.13031501]
[1756803136351,0.45202978,110660.0,110650.0,0.09521501]
[1756803136750,0.45202978,110660.0,110650.0,0.13031501]
[1756803137150,0.43294203,110660.0,110650.0,0.13031501]
[1756803138165,0.43294203,110660.0,110650.0,0.09521501]
[1756803138758,0.72418472,110660.0,110650.0,0.09521501]
[1756803139855,0.43294203,110660.0,110650.0,0.13031501]
[1756803140158,0.43294203,110660.0,110650.0,0.09521501]
[1756803140760,0.43294203,110660.0,110650.0,0.13031501]
[1756803141258,0.43294203,110660.0,110650.0,0.09521501]
[1756803141651,0.43294203,110660.0,110650.0,0.13031501]
[1756803142060,0.43294203,110660.0,110650.0,0.09521501]
[1756803142255,0.43294203,110660.0,110650.0,0.13031501]
[1756803143061,0.43294203,110660.0,110650.0,0.09521501]
[1756803143762,0.43294203,110660.0,110650.0,0.13031501]
[1756803145156,1.26154203,110660.0,110650.0,0.13031501]
[1756803145358,1.28063481,110660.0,110650.0,0.13031501]
[1756803146661,1.28063481,110660.0,110650.0,0.4215577]
[1756803149865,1.28063481,110660.0,110650.0,0.04935501]
[1756803150262,1.28063481,110660.0,110650.0,0.09521501]
[1756803150564,1.28063481,110660.0,110650.0,0.13031501]
[1756803151269,1.28063481,110660.0,110650.0,0.4215577]
[1756803152870,1.28063481,110660.0,110650.0,0.13031501]
[1756803153058,1.28063481,110660.0,110650.0,0.4215577]
[1756803153458,1.57192505,110660.0,110650.0,0.38650525]
[1756803154567,1.57192505,110660.0,110650.0,0.34064525]
[1756803154767,1.57192505,110660.0,110650.0,0.04935501]
[1756803155068,1.57192505,110660.0,110650.0,0.38650525]
[1756803157569,1.57192505,110660.0,110650.0,0.09521501]
[1756803157768,1.57192505,110660.0,110650.0,0.38650525]
[1756803159572,1.57192505,110660.0,110650.0,0.42183525]
[1756803159868,1.28039481,110660.0,110650.0,0.42183525]
[1756803160067,1.57168505,110660.0,110650.0,0.42183525]
[1756803160261,0.45203481,110660.0,110650.0,0.42183525]
[1756803160466,1.57168505,110660.0,110650.0,0.42183525]
[1756803161875,1.57171293,110660.0,110650.0,0.42183525]
[1756803164377,1.28042269,110660.0,110650.0,0.42183525]
[1756803164576,1.57171293,110660.0,110650.0,0.42183525]
[1756803165277,0.45206269,110660.0,110650.0,0.42183525]
[1756803165477,1.57163293,110660.0,110650.0,0.42183525]
[1756803167178,1.57163293,110660.0,110650.0,0.37348024]
[1756803167578,1.57163293,110660.0,110650.0,0.33815024]
[1756803169479,1.57163293,110660.0,110650.0,0.001]
[1756803169480,1.86292317,110660.0,110650.0,0.001]
[1756803169678,1.86292317,110660.0,110650.0,0.29229024]
[1756803170380,1.57163293,110660.0,110650.0,0.29229024]
[1756803170581,1.57163293,110660.0,110650.0,0.001]
[1756803170880,1.86292317,110660.0,110650.0,0.001]
[1756803171080,1.84380251,110660.0,110650.0,0.001]
[1756803171379,1.86292318,110660.0,110650.0,0.001]
[1756803171680,1.86292318,110660.0,110650.0,0.29229024]
[1756803174383,1.86292318,110660.0,110650.0,0.001]
[1756803175180,0.34912067,110660.0,110650.0,0.93035048]
[1756803175380,0.01912067,110660.0,110650.0,0.93035048]
[1756803175686,0.01912067,110660.0,110650.0,0.98321549]
[1756803176079,0.0081559,110670.0,110650.0,1.01554226]
[1756803176280,0.3381559,110670.0,110660.0,0.0825]
[1756803176473,0.3381559,110670.0,110660.0,0.66508048]
[1756803176877,0.3607959,110670.0,110660.0,0.66508048]
[1756803177285,0.3857259,110670.0,110660.0,0.69740725]
[1756803177980,0.3857259,110670.0,110660.0,0.74576226]
[1756803178172,0.4196259,110670.0,110660.0,0.74576226]
[1756803179182,0.4196259,110670.0,110660.0,0.69740725]
[1756803179382,0.4196259,110670.0,110660.0,0.74576226]
[1756803179783,0.4196259,110670.0,110660.0,0.71343549]
[1756803180186,0.3381559,110670.0,110660.0,0.71343549]
[1756803180488,0.3607959,110670.0,110660.0,0.96343549]
[1756803180790,0.4196259,110670.0,110660.0,0.96343549]
[1756803182384,0.3607959,110670.0,110660.0,0.96343549]
[1756803182886,0.3857259,110670.0,110660.0,0.96343549]
[1756803183087,0.3381559,110670.0,110660.0,0.96343549]
[1756803183389,0.3607959,110670.0,110660.0,0.97246789]
[1756803183588,0.3607959,110670.0,110660.0,0.96343549]
[1756803183889,0.3857259,110670.0,110660.0,0.96343549]
[1756803184890,0.4196259,110670.0,110660.0,0.96343549]
[1756803185389,0.4196259,110670.0,110660.0,0.9956836]
[1756803186690,0.3857259,110670.0,110660.0,0.9956836]
[1756803187190,0.3607959,110670.0,110660.0,1.79135549]
[1756803192294,0.3381559,110670.0,110660.0,1.79135549]
[1756803194892,0.1581559,110670.0,110660.0,1.78429072]
[1756803195793,0.0081559,110670.0,110660.0,1.78429072]
[1756803196797,0.01673505,110700.0,110690.0,0.08292]
[1756803197091,0.09158615,110750.0,110740.0,0.08255]
[1756803197092,0.17901615,110750.0,110740.0,0.08255]
[1756803197292,0.54901615,110750.0,110730.0,0.03508]
[1756803197494,0.54901615,110750.0,110740.0,0.66513048]
[1756803197695,0.53420615,110750.0,110740.0,0.66513048]
[1756803198295,0.04584615,110750.0,110740.0,0.98842626]
[1756803198492,0.09727491,110790.0,110740.0,1.2946365]
[1756803198493,0.05749003,110790.0,110740.0,1.2946365]
[1756803198701,0.32763024,110780.0,110770.0,0.03204341]
[1756803198885,1.40975072,110780.0,110760.0,0.03204341]
[1756803199088,0.08328,110760.0,110750.0,0.03204341]
[1756803199294,0.04694,110760.0,110750.0,0.29129024]
[1756803199501,0.03634,110780.0,110750.0,0.58258048]
[1756803199699,0.33,110780.0,110770.0,0.29129024]
[1756803200000,0.33,110780.0,110770.0,0.58258048]
[1756803200001,0.35259,110780.0,110770.0,0.58258048]
[1756803200207,0.047,110780.0,110770.0,0.60659959]
[1756803200402,0.43328,110780.0,110770.0,0.32333365]
[1756803200699,0.68328,110780.0,110770.0,0.31525012]
[1756803201089,0.68328,110780.0,110770.0,0.29229024]
[1756803201297,0.68328,110780.0,110770.0,0.60754036]
[1756803201298,0.31694,110780.0,110770.0,0.60754036]
[1756803201605,0.35328,110780.0,110770.0,0.31625012]
[1756803201794,0.35328,110780.0,110770.0,0.32076012]
[1756803201994,0.36328,110780.0,110770.0,0.32076012]
[1756803202297,0.36328,110780.0,110770.0,0.29680024]
[1756803202498,0.10328,110780.0,110770.0,0.29680024]
[1756803202703,0.94457024,110780.0,110770.0,0.32076012]
[1756803203002,0.65328,110780.0,110770.0,0.00551]
[1756803203202,1.77773024,110780.0,110770.0,0.29680024]
[1756803203405,1.77773024,110780.0,110770.0,0.00551]
[1756803205895,2.06902048,110780.0,110760.0,0.01854418]
[1756803206096,0.08328,110760.0,110750.0,0.29129024]
[1756803206402,0.09809,110750.0,110740.0,0.35667348]
[1756803206592,0.45809,110750.0,110740.0,0.64245372]
[1756803206792,0.45809,110750.0,110740.0,0.60968384]
[1756803207098,0.74938024,110750.0,110740.0,0.01829336]
[1756803207296,0.99938024,110750.0,110740.0,0.01829336]
[1756803207502,0.99938024,110750.0,110730.0,0.02302151]
[1756803207698,1.20721024,110740.0,110730.0,0.02302151]
[1756803207900,1.52421024,110740.0,110730.0,0.31431175]
[1756803208102,1.52421024,110740.0,110730.0,0.02302151]
[1756803208403,1.52421024,110740.0,110730.0,0.00451]
[1756803208800,1.52421024,110740.0,110730.0,0.00651]
[1756803208997,1.81550048,110740.0,110730.0,0.00651]
[1756803209193,0.04694,110720.0,110710.0,0.29129024]
[1756803209398,0.42328,110720.0,110710.0,0.44145674]
[1756803210705,0.34,110720.0,110710.0,0.69145674]
[1756803210904,0.08328,110730.0,110720.0,0.07778]
[1756803211101,0.08328,110730.0,110720.0,0.44145674]
[1756803211300,0.10339291,110740.0,110730.0,0.07778]
[1756803211505,0.41339291,110740.0,110730.0,0.44145674]
[1756803212599,0.08328,110730.0,110720.0,0.36367674]
[1756803212795,0.08328,110720.0,110710.0,0.09601532]
[1756803213000,0.08328,110720.0,110710.0,0.45969206]
[1756803214002,0.08328,110720.0,110710.0,0.45965206]
[1756803214900,0.08328,110720.0,110710.0,0.01819532]
[1756803215101,1.00695674,110720.0,110710.0,0.01819532]
[1756803215301,0.64328,110720.0,110710.0,0.01819532]
[1756803215506,0.09809,110700.0,110690.0,0.04155522]
[1756803215703,0.09809,110700.0,110690.0,0.09605522]